bitfinex/quotes_SOLUSD_20240613
["timestamp","ask_amount","ask_price","bid_price","bid_amount"]
[1718297172032,2.5126,147.26,147.15,20.68]
[1718297172432,2.5125,147.26,147.15,20.68]
[1718297173120,253.9410199,147.27,147.15,20.68]
[1718297173344,2.5129,147.24,147.15,20.68]
[1718297173648,7.5382,147.25,147.15,20.0]
[1718297173820,2.5136,147.2,147.15,20.0]
[1718297174220,2.5139,147.18,147.14,15.0942]
[1718297174447,2.5136,147.2,147.14,15.0942]
[1718297174650,2.5131,147.23,147.14,15.0942]
[1718297174947,20.0,147.23,147.14,15.0942]
[1718297175123,22.513,147.23,147.14,15.0942]
[1718297175649,20.0,147.23,147.15,20.34]
[1718297176441,2.5127,147.25,147.15,20.34]
[1718297176624,2.5125,147.26,147.17,0.17]
[1718297176819,2.5127,147.25,147.17,0.34]
[1718297179925,2.5129,147.24,147.17,0.17]
[1718297180250,0.17,147.23,147.14,15.0942]
[1718297180555,2.5135,147.21,147.14,15.0942]
[1718297180923,47.5132,147.22,147.14,15.0942]
[1718297182155,2.5132,147.22,147.14,15.0942]
[1718297182744,22.5132,147.22,147.14,15.0942]
[1718297183143,2.5134,147.21,147.14,15.0942]
[1718297183327,2.5132,147.22,147.14,15.0942]
[1718297183525,2.5131,147.23,147.15,20.34]
[1718297183728,2.5129,147.24,147.15,20.34]
[1718297183931,2.513,147.23,147.15,20.34]
[1718297184452,2.5129,147.24,147.15,20.34]
[1718297184655,2.5128,147.25,147.16,0.17]
[1718297184830,2.5128,147.25,147.17,0.17]
[1718297185028,2.5128,147.25,147.17,0.34]
[1718297185224,2.5126,147.26,147.17,0.34]
[1718297185429,2.5127,147.25,147.17,0.34]
[1718297187458,2.5129,147.24,147.17,0.34]
[1718297187749,2.5129,147.24,147.18,6.0075]
[1718297187951,0.8410199,147.27,147.19,20.68]
[1718297188859,2.5128,147.25,147.19,20.68]
[1718297189037,2.5126,147.26,147.19,20.34]
[1718297189633,5.8659199,147.27,147.19,20.0]
[1718297189862,2.5128,147.25,147.19,20.0]
[1718297190556,0.8410199,147.27,147.19,20.0]
[1718297190853,3.3534199,147.27,147.19,20.0]
[1718297191238,2.5125,147.26,147.19,20.0]
[1718297192069,1.0110199,147.27,147.19,20.0]
[1718297192239,2.513,147.24,147.18,22.4727]
[1718297192557,70.0256,147.25,147.18,22.4727]
[1718297192738,2.5129,147.24,147.18,22.4727]
[1718297195267,2.5127,147.25,147.18,22.4727]
[1718297195437,2.5129,147.24,147.18,22.4727]
[1718297196166,2.5132,147.23,147.18,22.4727]
[1718297196846,2.5132,147.22,147.18,22.4727]
[1718297197447,2.5131,147.23,147.18,22.4727]
[1718297197847,17.5905,147.24,147.18,22.4727]
[1718297198047,45.0,147.23,147.18,22.4727]
[1718297198345,2.5133,147.22,147.18,22.4727]
[1718297198558,5.0258,147.24,147.18,22.4727]
[1718297198860,2.5133,147.22,147.18,22.4727]
[1718297199965,2.5134,147.21,147.18,22.4727]
[1718297200149,2.5129,147.24,147.18,22.4727]
[1718297200356,5.0258,147.24,147.18,22.4727]
[1718297200560,2.5135,147.21,147.18,16.4652]
[1718297201868,2.5133,147.22,147.18,16.4652]
[1718297203171,2.5135,147.21,147.18,16.4652]
[1718297203594,5.3665,147.22,147.14,22.2641]
[1718297203888,2.5137,147.19,147.14,22.2641]
[1718297204350,2.514,147.18,147.14,15.8341]
[1718297204547,2.5141,147.17,147.14,15.8341]
[1718297205045,2.514,147.18,147.14,15.8341]
[1718297205360,2.5141,147.17,147.11,22.3566]
[1718297205548,0.17,147.16,147.11,22.3566]
[1718297205753,0.17,147.16,147.07,21.3532]
[1718297206069,2.5148,147.13,147.07,21.3532]
[1718297207473,47.6847,147.14,147.07,21.3532]
[1718297207671,0.34,147.16,147.07,21.3532]
[1718297207976,67.6843,147.16,147.07,21.3532]
[1718297208869,2.5146,147.14,147.07,21.3532]
[1718297209267,2.5148,147.13,147.07,21.3532]
[1718297211081,5.0296,147.13,147.07,21.3532]
[1718297211252,2.5152,147.11,147.07,21.3532]
[1718297212354,45.0,147.12,147.07,21.3532]
[1718297212560,2.5151,147.11,147.07,15.2581]
[1718297212873,2.5153,147.1,147.07,15.2581]
[1718297213071,2.5153,147.1,147.03,22.0694]
[1718297213381,2.5152,147.11,147.04,20.0]
[1718297213760,2.5153,147.1,147.03,22.0694]
[1718297213960,2.5154,147.09,147.03,22.0694]
[1718297214156,2.5159,147.07,147.03,22.0694]
[1718297214375,2.5159,147.07,147.03,15.978]
[1718297215479,2.5159,147.06,147.03,15.978]
[1718297216069,47.5159,147.06,147.03,15.978]
[1718297216252,45.0,147.06,147.0,6.0759]
[1718297216605,20.34,147.05,146.99,16.163]
[1718297216890,47.5164,147.04,146.99,16.163]
[1718297217056,2.5165,147.03,146.99,16.163]
[1718297217259,2.5167,147.02,146.96,6.0759]
[1718297218358,2.8565,147.03,146.96,6.0759]
[1718297218664,2.5171,147.0,146.95,16.163]
[1718297218889,2.5173,146.99,146.92,6.0759]
[1718297219091,2.5173,146.98,146.92,6.0759]
[1718297219756,2.8572,146.99,146.92,6.0759]
[1718297220576,2.5181,146.94,146.88,6.0731]
[1718297220779,2.5181,146.94,146.87,16.3576]
[1718297220981,0.34,146.95,146.87,16.3576]
[1718297221286,47.8579,146.95,146.87,16.3576]
[1718297221582,2.5181,146.94,146.87,16.3576]
[1718297222085,2.6882,146.93,146.87,16.3576]
[1718297222273,2.5183,146.92,146.87,16.3576]
[1718297222675,20.4,146.98,146.87,16.3576]
[1718297222980,27.7815,146.99,146.87,16.3576]
[1718297223171,2.5177,146.96,146.87,16.3576]
[1718297223373,2.5176,146.97,146.87,16.3576]
[1718297223678,2.5177,146.96,146.87,16.3576]
[1718297223890,20.0,146.98,146.88,0.17]
[1718297224061,2.5171,147.0,146.88,20.68]
[1718297224380,106.5188,147.02,146.88,20.34]
[1718297224591,10.0695,146.98,146.87,16.3576]
[1718297224755,2.518,146.94,146.87,16.3576]
[1718297224959,10.0711,146.96,146.87,16.3576]
[1718297225208,2.5185,146.92,146.87,16.3576]
[1718297225363,2.5188,146.9,146.85,6.0731]
[1718297225562,20.34,146.93,146.85,6.0731]
[1718297225790,2.5177,146.96,146.85,6.0731]
[1718297225967,0.17,146.97,146.85,6.0731]
[1718297226287,2.5179,146.95,146.85,6.0731]
[1718297226516,7.08234624,146.98,146.86,0.17]
[1718297226662,2.5173,146.98,146.87,16.1885]
[1718297226869,2.5173,146.98,146.88,20.17]
[1718297227176,20.4,146.98,146.88,20.0]
[1718297227375,20.0,147.0,146.89,0.17]
[1718297227580,2.5174,146.98,146.89,0.34]
[1718297227902,2.5166,147.03,146.92,0.17]
[1718297228207,28.9382,147.06,146.92,0.17]
[1718297228208,2.5163,147.04,146.92,20.68]
[1718297228500,5.0314,147.08,146.94,0.17]
[1718297228668,2.516,147.06,146.94,20.51]
[1718297228870,5.0306,147.1,146.96,0.17]
[1718297229073,51.625,147.14,146.98,0.17]
[1718297229293,2.5151,147.11,146.98,20.51]
[1718297229484,2.5151,147.11,146.99,0.17]
[1718297229806,2.5146,147.14,147.02,0.17]
[1718297229965,21.8612,147.21,147.04,15.1943]
[1718297230164,21.8612,147.21,147.08,0.17]
[1718297230165,2.5134,147.21,147.08,0.17]
[1718297230376,2.5134,147.21,147.08,0.34]
[1718297230613,12.5642,147.25,147.09,0.17]
[1718297230614,2.5136,147.2,147.09,0.17]
[1718297230910,20.4,147.24,147.08,20.17]
[1718297231080,25.426,147.24,147.1,0.17]
[1718297231276,253.1,147.17,147.1,0.17]
[1718297231527,253.1,147.17,147.1,0.34]
[1718297231692,2.5132,147.22,147.12,0.17]
[1718297231891,2.513,147.24,147.14,0.17]
[1718297232106,2.513,147.24,147.14,0.51]
[1718297232403,255.6127,147.25,147.14,0.51]
[1718297232710,253.1,147.25,147.15,0.17]
[1718297232892,253.1,147.25,147.16,0.17]
[1718297233078,253.1,147.25,147.16,20.51]
[1718297233501,0.8410199,147.27,147.17,0.17]
[1718297233684,0.8410199,147.27,147.18,0.17]
[1718297233891,0.8410199,147.27,147.18,0.51]
[1718297234082,0.8410199,147.27,147.19,0.17]
[1718297234286,0.8410199,147.27,147.2,0.17]
[1718297234695,0.8410199,147.27,147.2,0.34]
[1718297234890,3.3535199,147.27,147.19,0.17]
[1718297235099,3.3535199,147.27,147.16,20.0]
[1718297235100,0.8410199,147.27,147.18,0.34]
[1718297235310,0.8410199,147.27,147.19,0.34]
[1718297235505,2.5125,147.26,147.19,0.34]
[1718297235718,3.3534199,147.27,147.19,0.34]
[1718297236013,0.8410199,147.27,147.19,0.34]
[1718297236209,0.8410199,147.27,147.21,0.17]
[1718297236409,0.8410199,147.27,147.19,0.17]
[1718297236586,3.3534199,147.27,147.18,0.34]
[1718297236790,2.5125,147.26,147.17,45.17]
[1718297236990,2.5126,147.26,147.18,20.0]
[1718297237195,0.8410199,147.27,147.18,20.0]
[1718297237395,0.8410199,147.27,147.15,6.2336]
[1718297237396,5.1951,147.26,147.15,6.2336]
[1718297237592,0.17,147.22,147.09,6.6457]
[1718297237797,2.5139,147.18,147.09,6.6457]
[1718297238197,2.5141,147.17,147.09,6.6457]
[1718297238400,2.5136,147.2,147.09,6.6457]
[1718297238652,20.17,147.22,147.09,6.6457]
[1718297238653,0.34,147.21,147.09,6.6457]
[1718297238928,2.5132,147.22,147.09,6.6457]
[1718297239134,47.5132,147.22,147.09,6.6457]
[1718297239534,0.34,147.23,147.1,45.68]
[1718297239699,0.17,147.22,147.1,45.68]
[1718297240027,2.5137,147.2,147.11,20.0]
[1718297240197,2.5137,147.2,147.12,45.34]
[1718297240397,2.5134,147.21,147.13,20.0]
[1718297240610,2.8533,147.22,147.13,20.0]
[1718297240918,2.6833,147.22,147.13,20.0]
[1718297241219,8.3784199,147.27,147.14,0.17]
[1718297241220,2.5129,147.24,147.14,0.17]
[1718297241560,0.34,147.25,147.14,45.51]
[1718297241716,45.34,147.25,147.15,20.0]
[1718297241919,0.17,147.24,147.15,20.0]
[1718297242101,20.17,147.24,147.15,20.0]
[1718297242301,22.683,147.24,147.15,20.0]
[1718297243108,20.0,147.24,147.15,20.0]
[1718297243425,2.5137,147.19,147.12,0.17]
[1718297243629,2.5135,147.2,147.12,45.34]
[1718297243928,20.0,147.22,147.14,0.17]
[1718297244101,22.5132,147.22,147.14,0.34]
[1718297244301,2.5134,147.21,147.14,0.34]
[1718297244606,2.5135,147.2,147.13,20.0]
[1718297244809,2.5135,147.2,147.12,20.17]
[1718297245226,0.17,147.21,147.12,20.0]
[1718297245428,65.68,147.21,147.07,15.2296]
[1718297245803,2.5139,147.18,147.07,15.2296]
[1718297246501,65.68,147.21,147.07,15.2296]
[1718297246722,2.5139,147.18,147.1,20.0]
[1718297247243,2.5143,147.16,147.1,20.0]
[1718297247604,2.6841,147.17,147.1,20.0]
[1718297248010,0.17,147.17,147.1,20.0]
[1718297248324,2.5143,147.16,147.07,15.2296]
[1718297248897,22.6841,147.17,147.07,15.2296]
[1718297250447,20.4,147.2,147.07,15.2296]
[1718297250601,2.5142,147.17,147.1,20.0]
[1718297250803,2.5142,147.16,147.1,20.0]
[1718297252027,2.5141,147.17,147.1,20.0]
[1718297253212,253.1,147.24,147.11,0.17]
[1718297253412,2.5139,147.18,147.12,2.5148]
[1718297253617,20.0,147.21,147.11,0.17]
[1718297253839,2.5137,147.19,147.13,2.5146]
[1718297254505,2.5136,147.2,147.14,2.5145]
[1718297255052,2.5137,147.19,147.13,2.5146]
[1718297255219,2.5136,147.2,147.14,2.5145]
[1718297255424,20.0,147.21,147.13,12.5737]
[1718297255625,2.5134,147.21,147.15,2.5143]
[1718297256321,2.5133,147.22,147.16,2.5142]
[1718297257911,25.0262,147.23,147.12,10.3992]
[1718297258115,2.5136,147.2,147.14,2.5145]
[1718297259225,2.5137,147.19,147.13,22.5147]
[1718297259544,2.5137,147.19,147.13,2.5147]
[1718297260338,2.5136,147.2,147.14,2.5146]
[1718297260717,2.5137,147.19,147.14,2.5146]
[1718297260916,5.0273,147.2,147.12,2.5148]
[1718297261136,2.5141,147.17,147.11,2.515]
[1718297261316,2.5143,147.16,147.1,22.5152]
[1718297261517,2.5143,147.16,147.1,2.5152]
[1718297261722,2.5141,147.17,147.11,2.5151]
[1718297261921,2.5139,147.18,147.1,5.0305]
[1718297262123,2.5141,147.17,147.11,2.515]
[1718297262331,77.9087,147.19,147.09,6.6457]
[1718297262547,2.5141,147.17,147.11,2.515]
[1718297263316,2.5141,147.17,147.12,2.5149]
[1718297263516,2.5142,147.16,147.11,2.515]
[1718297263827,2.5142,147.16,147.1,22.5152]
[1718297264022,2.5146,147.14,147.07,20.2609]
[1718297264232,2.5145,147.15,147.09,2.5153]
[1718297264540,2.5148,147.13,147.07,17.7452]
[1718297264958,2.5148,147.13,147.08,2.5156]
[1718297265253,2.5148,147.13,147.07,17.7453]
[1718297265754,2.6846,147.14,147.08,2.5156]
[1718297265967,2.6846,147.14,147.07,15.2296]
[1718297265968,22.5145,147.15,147.07,20.2611]
[1718297266247,20.17,147.16,147.1,2.5152]
[1718297266453,2.5147,147.13,147.07,15.2296]
[1718297266624,2.5148,147.13,147.07,17.7452]
[1718297266944,2.5149,147.12,147.07,17.7452]
[1718297267126,2.5151,147.11,147.07,15.2296]
[1718297267331,2.5151,147.11,147.05,8.7842]
[1718297267513,5.0296,147.13,147.06,2.5159]
[1718297267514,22.515,147.12,147.06,2.5159]
[1718297267831,2.5151,147.11,147.05,8.7842]
[1718297268026,2.5153,147.1,147.05,2.516]
[1718297268728,2.5154,147.09,147.03,20.0]
[1718297269057,2.5156,147.08,147.03,2.5163]
[1718297269353,2.5156,147.08,147.03,2.5164]
[1718297269553,2.5155,147.09,147.03,2.5164]
[1718297270852,5.031,147.09,147.01,6.3869]
[1718297271029,83.2896,147.08,146.99,2.517]
[1718297271233,2.5162,147.05,147.0,2.5169]
[1718297271424,2.5162,147.05,146.98,15.6322]
[1718297271628,20.0,147.06,146.99,12.5857]
[1718297271849,20.0,147.06,147.01,2.5166]
[1718297272050,22.5159,147.07,147.01,2.5166]
[1718297272356,22.5159,147.07,146.99,12.5857]
[1718297272357,20.0,147.07,147.02,2.5166]
[1718297273038,22.5158,147.07,147.01,2.5167]
[1718297273245,2.5159,147.06,147.0,2.5169]
[1718297273548,22.5159,147.07,147.01,2.5167]
[1718297274331,20.0,147.07,147.01,2.5167]
[1718297274532,2.516,147.06,147.01,2.5167]
[1718297274929,22.5158,147.07,147.01,2.5167]
[1718297275433,2.5162,147.05,146.99,22.517]
[1718297275646,2.516,147.06,147.0,2.5169]
[1718297275836,2.5161,147.05,147.0,2.5169]
[1718297276325,2.5163,147.04,146.99,22.5171]
[1718297276532,2.5163,147.04,146.99,2.5171]
[1718297278955,2.5162,147.05,146.99,2.5171]
[1718297279253,2.5163,147.04,146.98,2.5172]
[1718297279646,2.5163,147.04,146.99,2.5171]
[1718297279834,22.5162,147.05,146.99,2.5171]
[1718297280039,2.5162,147.05,147.0,2.517]
[1718297280238,65.0,147.06,147.0,2.517]
[1718297280545,7.7184,147.05,146.97,8.9054]
[1718297280758,2.5167,147.02,146.97,2.5174]
[1718297280935,2.5169,147.01,146.95,2.5177]
[1718297281147,2.5169,147.01,146.95,22.5177]
[1718297281457,2.517,147.0,146.95,2.5178]
[1718297281758,2.5172,146.99,146.94,2.5179]
[1718297281925,2.517,147.0,146.94,2.5179]
[1718297282329,2.517,147.0,146.95,2.5178]
[1718297283038,20.0,147.01,146.94,5.036]
[1718297283267,6.1632,147.04,146.91,0.17]
[1718297283442,22.5165,147.03,146.95,22.6596]
[1718297283773,22.5165,147.03,146.97,2.5173]
[1718297284081,6.1632,147.04,147.0,2.5169]
[1718297284354,6.2531,147.08,147.02,2.5165]
[1718297284561,2.5158,147.07,147.02,2.5165]
[1718297284858,2.5159,147.06,147.01,2.5167]
[1718297285058,2.5158,147.07,147.02,2.5166]
[1718297285257,2.516,147.06,147.01,2.5167]
[1718297285557,2.516,147.06,146.99,5.0343]
[1718297285930,2.5161,147.05,147.0,2.5169]
[1718297286346,2.5161,147.05,146.86,283.09]
[1718297286347,2.5167,147.02,146.96,2.5175]
[1718297286533,0.17,147.06,146.99,2.5171]
[1718297286534,5.3722,147.06,146.99,2.5171]
[1718297286735,20.0,147.05,147.0,2.5169]
[1718297286963,22.5158,147.07,147.02,2.5166]
[1718297287138,2.5158,147.07,147.02,2.5166]
[1718297287343,6.2531,147.08,147.02,2.5165]
[1718297287545,6.2531,147.08,146.98,15.1036]
[1718297287749,6.2531,147.08,146.97,20.0]
[1718297288057,12.5817,147.04,146.97,20.0]
[1718297288358,2.5164,147.04,146.99,2.5171]
[1718297288954,22.5162,147.05,146.97,12.5875]
[1718297289162,2.5163,147.04,146.99,2.517]
[1718297289661,6.2531,147.08,147.01,17.6174]
[1718297289841,6.2531,147.08,147.04,2.5161]
[1718297290156,2.516,147.06,147.0,2.5168]
[1718297290361,22.5159,147.07,147.02,2.5166]
[1718297290555,22.5159,147.07,146.97,0.17]
[1718297290556,6.2531,147.08,147.01,5.0336]
[1718297290736,2.5156,147.08,147.03,2.5163]
[1718297291240,16.1167,147.09,147.02,2.5165]
[1718297291444,16.1167,147.09,147.03,2.5164]
[1718297291649,2.5155,147.09,147.03,2.5163]
[1718297292363,2.5155,147.09,147.01,12.584]
[1718297292580,2.5155,147.09,147.04,2.5162]
[1718297292782,2.5155,147.09,147.03,2.5163]
[1718297293079,2.5157,147.08,147.02,2.5165]
[1718297293560,32.5765,147.1,147.02,2.5165]
[1718297293764,2.5155,147.09,147.03,2.5163]
[1718297294089,2.5155,147.09,147.04,2.5163]
[1718297294648,26.5548,147.13,147.02,0.17]
[1718297294847,259.2061,147.14,147.07,2.5157]
[1718297294848,264.2356,147.14,147.07,2.5157]
[1718297295063,2.5148,147.13,147.07,2.5157]
[1718297295244,6.1061,147.14,147.06,30.0635]
[1718297295448,2.5149,147.12,147.06,22.5158]
[1718297295670,2.5148,147.13,147.07,2.5157]
[1718297295976,2.5149,147.12,147.06,22.5158]
[1718297296137,7.545,147.12,147.02,0.51]
[1718297296341,2.5158,147.07,147.02,2.5165]
[1718297296654,2.5159,147.06,147.01,24.144]
[1718297296861,2.5157,147.08,147.02,2.5166]
[1718297297056,2.5158,147.07,147.02,2.5166]
[1718297297250,2.5157,147.08,147.02,2.5166]
[1718297297456,22.6369,147.11,147.03,2.5164]
[1718297297783,2.5154,147.09,147.04,2.5162]
[1718297298374,12.9148,147.12,147.05,2.5161]
[1718297298375,20.0,147.11,147.05,2.5161]
[1718297298556,2.5153,147.1,147.05,2.5161]
[1718297298749,2.5152,147.11,147.06,2.5159]
[1718297299273,2.5152,147.11,147.05,2.516]
[1718297299446,22.6331,147.13,147.01,15.5773]
[1718297299447,45.17,147.12,147.01,20.6107]
[1718297299653,45.17,147.12,147.02,22.6865]
[1718297299654,2.5158,147.07,147.02,22.6865]
[1718297299867,2.5158,147.07,147.02,22.5165]
[1718297300075,2.5158,147.07,147.02,22.5166]
[1718297300256,2.5158,147.07,147.02,2.5166]
[1718297300458,2.516,147.06,147.01,2.5167]
[1718297300763,2.5159,147.07,147.01,2.5167]
[1718297300948,2.5159,147.07,146.99,12.5857]
[1718297300949,2.5159,147.07,147.02,2.5166]
[1718297301144,2.516,147.06,147.0,2.5169]
[1718297301594,2.5161,147.05,147.0,2.5169]
[1718297301782,2.5161,147.05,146.99,2.517]
[1718297301955,2.5161,147.05,146.99,22.517]
[1718297302155,2.5161,147.05,147.0,20.0]
[1718297302773,2.5161,147.05,147.0,22.5169]
[1718297303077,2.5161,147.05,147.0,2.5169]
[1718297303382,2.516,147.06,147.0,2.5169]
[1718297303559,2.5158,147.07,147.01,2.5167]
[1718297304283,20.0,147.08,147.01,2.5167]
[1718297304480,2.5159,147.07,147.01,2.5167]
[1718297304669,2.5161,147.05,147.0,2.5169]
[1718297305183,37.6098,147.08,146.99,22.5171]
[1718297305349,7.5484,147.05,146.98,16.0964]
[1718297305550,2.5167,147.02,146.95,5.0357]
[1718297305884,25.2027,147.04,146.96,2.5175]
[1718297305885,2.5168,147.01,146.96,2.5175]
[1718297306066,2.5167,147.02,146.97,2.5174]
[1718297306384,10.0661,147.03,146.94,16.1686]
[1718297306566,2.5172,146.99,146.94,16.1686]
[1718297306760,2.5172,146.99,146.93,2.518]
[1718297306761,2.5173,146.98,146.9,35.2642]
[1718297306964,2.5173,146.98,146.92,2.5182]
[1718297307160,12.5863,146.99,146.9,16.1686]
[1718297307360,45.17,146.98,146.91,2.5184]
[1718297307552,2.5175,146.97,146.91,2.5184]
[1718297307750,2.5176,146.97,146.91,2.5185]
[1718297308165,117.6165,147.03,146.91,5.037]
[1718297308366,2.5171,147.0,146.94,2.5179]
[1718297308549,22.5171,147.0,146.95,2.5178]
[1718297308749,20.0,147.0,146.95,2.5178]
[1718297308977,2.5169,147.01,146.95,2.5178]
[1718297309181,2.5166,147.03,146.97,2.5174]
[1718297309378,20.0,147.03,146.96,2.5175]
[1718297309699,2.5168,147.01,146.95,2.5177]
[1718297309852,28.415,147.04,146.94,2.518]
[1718297309853,17.6155,147.03,146.94,2.518]
[1718297310049,10.0671,147.02,146.93,2.5181]
[1718297310275,2.5173,146.98,146.92,2.5182]
[1718297310488,2.5172,146.99,146.91,25.0369]
[1718297310671,15.1006,147.02,146.91,20.0]
[1718297310858,2.5171,147.0,146.94,2.5179]
[1718297311283,5.204,147.0,146.92,2.5182]
[1718297311474,2.5174,146.98,146.92,2.5182]
[1718297311655,2.5172,146.99,146.93,2.518]
[1718297311854,2.5171,147.0,146.94,2.5179]
[1718297312058,2.517,147.0,146.95,2.5177]
[1718297312268,20.0,147.01,146.94,2.5179]
[1718297312487,2.5171,146.99,146.94,2.5179]
[1718297312857,20.0,147.01,146.95,2.5178]
[1718297313054,20.0,147.02,146.94,10.0718]
[1718297313291,15.8333,147.04,146.96,5.0353]
[1718297313292,20.0,147.03,146.96,5.0353]
[1718297313584,2.5172,146.99,146.93,2.5181]
[1718297313892,2.517,147.0,146.94,2.5179]
[1718297314189,2.5165,147.03,146.97,2.5174]
[1718297314362,20.0,147.02,146.97,2.5174]
[1718297314561,22.5166,147.02,146.97,2.5174]
[1718297314879,20.0,147.02,146.97,2.5174]
[1718297315089,0.17,147.03,146.95,2.5177]
[1718297315288,0.17,147.03,146.94,22.5179]
[1718297315289,2.517,147.0,146.94,22.5179]
[1718297315587,22.5169,147.01,146.95,2.5178]
[1718297315806,2.5166,147.02,146.94,5.036]
[1718297315958,0.17,147.03,146.96,2.5175]
[1718297315959,20.0,147.03,146.96,2.5175]
[1718297316271,2.5168,147.01,146.96,2.5175]
[1718297317060,2.5168,147.01,146.95,22.5177]
[1718297317264,10.0657,147.04,146.94,32.5899]
[1718297317265,2.5167,147.02,146.94,32.5899]
[1718297317465,2.5167,147.02,146.95,0.34]
[1718297317783,32.5826,147.03,146.95,2.5177]
[1718297318106,2.5171,147.0,146.94,22.5178]
[1718297318273,2.5167,147.02,146.94,5.0359]
[1718297318468,20.0,147.03,146.95,20.0]
[1718297318664,2.5168,147.01,146.96,2.5175]
[1718297319063,2.517,147.0,146.94,2.5179]
[1718297319279,22.6487,147.03,146.93,27.7245]
[1718297319584,22.6487,147.03,146.93,20.17]
[1718297319585,32.7533,147.02,146.93,20.17]
[1718297319785,2.5172,146.99,146.93,22.5181]
[1718297319965,2.5172,146.99,146.93,2.5181]
[1718297320161,2.5173,146.99,146.93,2.5181]
[1718297320385,5.034,147.0,146.92,2.5182]
[1718297320570,2.5174,146.98,146.92,2.5182]
[1718297320984,2.5174,146.98,146.93,2.5181]
[1718297321989,20.0,146.99,146.94,2.518]
[1718297322294,22.5172,146.99,146.94,2.518]
[1718297322485,2.5173,146.98,146.93,2.518]
[1718297323774,20.0,147.0,146.92,17.6283]
[1718297323978,22.5171,147.0,146.94,2.5179]
[1718297324284,20.0,147.0,146.95,2.5177]
[1718297324495,2.5171,147.0,146.95,2.5177]
[1718297324665,2.5171,146.99,146.91,12.7625]
[1718297324876,2.5173,146.98,146.93,2.5181]
[1718297327000,22.5172,146.99,146.94,2.518]
[1718297327969,22.517,147.0,146.93,5.0363]
[1718297328166,2.517,147.0,146.94,2.5179]
[1718297328391,2.5174,146.98,146.91,12.7624]
[1718297328564,2.5174,146.98,146.93,2.5181]
[1718297328761,22.5172,146.99,146.93,2.5181]
[1718297329591,2.5173,146.98,146.93,2.5181]
[1718297329889,20.0,146.99,146.91,7.7256]
[1718297330079,22.517,147.0,146.94,2.5179]
[1718297330276,2.517,147.0,146.95,2.5178]
[1718297330467,20.0,147.01,146.97,2.5174]
[1718297330790,2.517,147.0,146.95,2.5178]
[1718297331096,32.7533,147.02,146.92,17.6282]
[1718297331097,2.5172,146.99,146.94,2.5179]
[1718297331299,22.517,147.0,146.95,2.5178]
[1718297331484,2.517,147.0,146.95,2.5178]
[1718297332594,2.5168,147.01,146.96,2.5176]
[1718297332993,2.5168,147.01,146.95,2.5177]
[1718297333184,2.5171,147.0,146.94,2.5179]
[1718297333584,2.5171,146.99,146.94,2.5179]
[1718297334277,2.5171,146.99,146.93,0.17]
[1718297334278,20.0,147.0,146.9,31.4504]
[1718297334466,2.5175,146.97,146.92,2.5182]
[1718297334886,2.5175,146.97,146.91,20.0]
[1718297335200,2.5174,146.98,146.92,2.5182]